bitfinex-derivatives/quotes_ETHF0:USTF0_20250213
["timestamp","ask_amount","ask_price","bid_price","bid_amount"]
[1739413851814,0.73044,2737.7,2737.5,0.00546926]
[1739413852821,3.93821,2737.8,2737.5,0.00546926]
[1739413853022,0.73041,2737.8,2737.5,0.00546926]
[1739413853215,0.73037,2738.0,2737.5,0.00546926]
[1739413853520,3.21326926,2738.1,2737.5,0.00546926]
[1739413853521,3.94360926,2738.1,2737.7,0.73042]
[1739413853717,3.21326926,2738.1,2737.5,0.00546926]
[1739413854021,0.73038,2737.9,2737.5,0.73592926]
[1739413854322,2.35637,2738.0,2737.6,0.73045]
[1739413854622,1.626,2738.0,2737.7,0.73042]
[1739413854823,3.21326926,2738.1,2737.9,0.73036]
[1739413855023,0.00546926,2738.1,2738.0,0.73035]
[1739413855321,0.00546926,2738.1,2738.0,3.87767018]
[1739413856915,0.00546926,2738.1,2738.0,44.67767018]
[1739413857827,0.00546926,2738.1,2738.0,43.94732018]
[1739413858017,0.00546926,2738.1,2738.0,44.67767018]
[1739413858713,0.00546926,2738.1,2738.0,47.88547018]
[1739413860427,0.00546926,2738.1,2738.0,47.15512018]
[1739413860722,0.00546926,2738.1,2738.0,47.88547018]
[1739413861021,0.00546926,2738.1,2737.5,4.46646926]
[1739413861022,0.73046,2737.6,2737.5,0.00546926]
[1739413861220,3.93826,2737.6,2737.5,0.00546926]
[1739413863139,0.7306,2737.1,2736.8,40.8]
[1739413863440,0.73062,2737.0,2736.8,40.8]
[1739413863739,1.626,2737.2,2736.6,3.2078]
[1739413863935,2.35658,2737.2,2736.6,3.2078]
[1739413864136,2.35658,2737.2,2736.9,0.73064]
[1739413864337,2.35658,2737.2,2736.6,3.2078]
[1739413864739,1.626,2737.2,2736.9,0.73063]
[1739413865239,2.35658,2737.2,2736.8,0.73066]
[1739413865441,1.626,2737.2,2736.6,3.2078]
[1739413865628,2.35656,2737.2,2736.8,0.73065]
[1739413865834,3.2078,2737.4,2737.1,3.87791018]
[1739413866033,1.626,2737.3,2737.1,3.14732018]
[1739413866232,0.73057,2737.2,2736.8,3.87798018]
[1739413866431,2.35656,2737.3,2736.8,3.87798018]
[1739413866643,1.626,2737.3,2736.8,3.14732018]
[1739413866843,1.626,2737.3,2737.0,0.7306]
[1739413867042,1.626,2737.3,2736.9,40.8]
[1739413867244,2.35654,2737.3,2736.9,41.53063]
[1739413867635,0.73058,2737.2,2736.9,40.8]
[1739413867942,0.73059,2737.1,2736.9,40.8]
[1739413869146,0.73058,2737.2,2736.9,41.53064]
[1739413869344,1.626,2737.3,2736.9,41.53064]
[1739413869544,0.73058,2737.2,2736.9,41.53064]
[1739413869745,0.73058,2737.2,2736.9,40.8]
[1739413870050,0.73059,2737.1,2736.9,40.8]
[1739413870338,0.73069,2736.8,2736.5,3.87806018]
[1739413870540,0.73068,2736.8,2736.5,3.87806018]
[1739413870739,0.73068,2736.8,2736.5,44.67806018]
[1739413870937,1.626,2737.3,2736.5,43.94732018]
[1739413871240,0.73068,2736.8,2736.5,44.67805018]
[1739413871448,3.2078,2736.7,2736.5,43.94732018]
[1739413871638,0.73069,2736.8,2736.5,44.67807018]
[1739413872243,3.2078,2737.0,2736.5,43.94732018]
[1739413872444,0.73068,2736.8,2736.5,44.67806018]
[1739413872939,3.2078,2737.0,2736.5,43.94732018]
[1739413873248,3.2078,2737.0,2736.8,3.14732018]
[1739413873249,1.626,2737.0,2736.8,3.14732018]
[1739413873446,0.73058,2737.2,2736.9,0.73064]
[1739413873646,1.626,2737.1,2736.9,0.73064]
[1739413873847,3.2078,2737.4,2736.8,3.14732018]
[1739413874143,3.2078,2737.4,2737.1,3.14732018]
[1739413874439,3.2078,2737.4,2737.3,0.73054]
[1739413875345,3.2078,2737.4,2737.1,3.14732018]
[1739413875543,0.73044,2737.7,2737.3,0.73054]
[1739413875843,3.2078,2737.8,2737.1,3.14732018]
[1739413876037,0.00546926,2738.1,2737.7,3.14732018]
[1739413876239,0.00546926,2738.1,2737.3,3.2078]
[1739413876240,0.00546926,2738.1,2738.0,3.14732018]
[1739413877143,0.00546926,2738.1,2738.0,3.87767018]
[1739413878045,0.00546926,2738.1,2738.0,3.14732018]
[1739413878440,0.73578926,2738.1,2738.0,3.14732018]
[1739413878641,0.00546926,2738.1,2738.0,3.14732018]
[1739413879234,0.00546926,2738.1,2738.0,3.87767018]
[1739413882948,0.00546926,2738.1,2738.0,3.14732018]
[1739413883147,0.00546926,2738.1,2738.0,3.87767018]
[1739413888252,0.00546926,2738.1,2738.0,3.14732018]
[1739413889055,0.00546926,2738.1,2738.0,3.87767018]
[1739413889840,0.00546926,2738.1,2738.0,0.73035]
[1739413890248,0.00546926,2738.1,2737.9,3.14732018]
[1739413890447,0.73579926,2738.1,2737.9,3.14732018]
[1739413890948,0.00546926,2738.1,2737.5,44.0078]
[1739413891150,0.73580926,2738.1,2737.7,0.73042]
[1739413891350,0.00546926,2738.1,2737.6,3.14732018]
[1739413891745,0.00546926,2738.1,2737.3,43.94732018]
[1739413891948,0.73056,2737.3,2737.0,3.14732018]
[1739413892153,0.73056,2737.3,2736.7,3.2078]
[1739413892154,0.73065,2736.9,2736.7,3.14732018]
[1739413892350,3.2078,2737.0,2736.4,3.14732018]
[1739413892548,0.73066,2736.9,2736.4,3.87808018]
[1739413893051,0.55363027,2736.9,2736.5,40.8]
[1739413893256,0.55363027,2736.9,2736.5,41.53074]
[1739413893455,0.55363027,2736.9,2736.5,41.53073]
[1739413894347,0.55363027,2736.9,2736.5,40.8]
[1739413894951,0.55363027,2736.9,2736.6,0.73072]
[1739413895149,0.55363027,2736.9,2736.5,40.8]
[1739413895350,0.55363027,2736.9,2736.5,41.53074]
[1739413896059,0.55363027,2736.9,2736.5,40.8]
[1739413896356,1.625,2737.2,2736.7,3.14732018]
[1739413896552,1.626,2737.5,2737.1,3.14732018]
[1739413896749,3.2078,2737.7,2737.1,3.14732018]
[1739413896953,1.626,2737.4,2737.1,3.14732018]
[1739413897355,0.73055,2737.3,2736.8,3.87798018]
[1739413897556,0.73054,2737.3,2736.8,3.87798018]
[1739413897751,4.8338,2737.4,2736.8,3.87798018]
[1739413897752,4.8338,2737.4,2736.8,3.14732018]
[1739413897956,5.56433,2737.4,2736.9,0.73063]
[1739413898354,4.8338,2737.4,2736.8,3.14732018]
[1739413898556,4.8338,2737.4,2737.2,0.73054]
[1739413898959,4.8338,2737.4,2737.1,3.14732018]
[1739413899165,3.2078,2737.4,2737.1,3.14732018]
[1739413899463,3.2078,2737.4,2737.1,3.87791018]
[1739413899652,3.2078,2737.4,2737.1,3.14732018]
[1739413899851,3.2078,2737.9,2737.1,3.14732018]
[1739413900055,1.626,2737.8,2737.5,0.73046]
[1739413900255,1.626,2737.8,2737.4,3.14732018]
[1739413900557,1.626,2737.8,2737.6,0.73044]
[1739413900757,0.00546926,2738.1,2737.7,3.14732018]
[1739413901070,0.00546926,2738.1,2737.8,0.7304]
[1739413901362,0.00546926,2738.1,2737.8,0.73038]
[1739413902159,0.00546926,2738.1,2737.7,3.14732018]
[1739413902160,0.73038,2737.9,2737.7,3.14732018]
[1739413902358,3.2078,2738.0,2737.7,3.14732018]
[1739413902560,0.73039,2737.9,2737.7,3.14732018]
[1739413903065,3.94359926,2738.1,2737.7,3.14732018]
[1739413903361,0.73037,2738.0,2737.5,0.73048]
[1739413903556,3.21326926,2738.1,2737.4,3.87782018]
[1739413903758,0.73039,2737.9,2737.5,0.73048]
[1739413903958,3.21326926,2738.1,2737.4,3.14732018]
[1739413904153,0.00546926,2738.1,2737.7,3.14732018]
[1739413904359,0.00546926,2738.1,2737.9,0.73036]
[1739413904558,0.00546926,2738.1,2738.0,3.87767018]
[1739413904760,0.00546926,2738.1,2738.0,3.14732018]
[1739413905769,0.00546926,2738.1,2738.0,3.87767018]
[1739413906567,0.00546926,2738.1,2738.0,3.14732018]
[1739413907069,0.73578926,2738.1,2737.8,0.73039]
[1739413907369,0.73042,2737.8,2737.6,3.2078]
[1739413907565,3.21326926,2738.1,2737.4,3.14732018]
[1739413907763,0.73044,2737.7,2737.4,3.87782018]
[1739413908361,1.625,2737.9,2737.4,3.87782018]
[1739413908562,0.73041,2737.8,2737.4,3.14732018]
[1739413908758,1.625,2737.9,2737.4,3.14732018]
[1739413908968,1.625,2737.9,2737.7,0.73042]
[1739413909661,1.625,2737.9,2737.6,0.73044]
[1739413910170,2.35538,2737.9,2737.6,0.73044]
[1739413910365,1.625,2737.9,2737.7,0.73042]
[1739413910766,3.21326926,2738.1,2737.4,6.35512018]
[1739413910967,1.625,2738.0,2737.7,0.7304]
[1739413911171,0.73580926,2738.1,2737.7,0.7304]
[1739413911368,1.625,2738.0,2737.9,0.73038]
[1739413911570,2.17899902,2738.0,2737.9,0.73038]
[1739413911769,0.55399902,2738.0,2737.9,0.73038]
[1739413912072,0.00546926,2738.1,2737.9,41.53038]
[1739413912267,0.00546926,2738.1,2738.0,3.14732018]
[1739413913073,3.21326926,2738.1,2737.7,3.14732018]
[1739413913273,0.73038,2737.9,2737.7,3.14732018]
[1739413913473,0.7304,2737.8,2737.7,3.14732018]
[1739413914374,3.2078,2738.0,2737.4,3.14732018]
[1739413914576,0.73048,2737.5,2737.4,3.14732018]
[1739413915477,3.76179902,2737.9,2737.4,3.14732018]
[1739413915678,0.55399902,2737.9,2737.4,3.14732018]
[1739413915863,3.2078,2737.9,2737.7,3.87774018]
[1739413916066,4.8328,2738.0,2737.9,0.73037]
[1739413916267,2.17899902,2738.0,2737.9,0.73037]
[1739413916868,0.55399902,2738.0,2737.9,0.73037]
[1739413917174,0.00546926,2738.1,2737.7,3.14732018]
[1739413917470,0.00546926,2738.1,2738.0,3.87767018]
[1739413920075,0.00546926,2738.1,2738.0,0.73035]
[1739413923177,0.55379088,2738.9,2738.6,0.73017]
[1739413923377,1.28391088,2738.9,2738.6,3.14732018]
[1739413923577,0.73014,2738.8,2738.6,3.14732018]
[1739413923771,0.55379088,2738.9,2738.6,3.14732018]
[1739413923973,0.73012,2738.9,2738.6,3.14732018]
[1739413924172,4.8328,2739.0,2738.6,3.14732018]
[1739413924372,5.56837935,2739.0,2738.6,3.87750018]
[1739413924571,0.73011,2738.9,2738.6,3.87750018]
[1739413924772,4.83827935,2739.0,2738.7,0.73015]
[1739413924978,5.56835935,2739.0,2738.6,3.87748018]
[1739413925176,4.83827935,2739.0,2738.6,3.14732018]
[1739413925567,0.55364927,2738.9,2738.6,3.14732018]
[1739413925771,0.73016,2738.8,2738.6,3.14732018]
[1739413926176,0.55364927,2738.9,2738.6,3.14732018]
[1739413926376,0.73016,2738.7,2738.6,3.14732018]
[1739413926572,0.73019,2738.6,2738.5,0.00547935]
[1739413927078,3.2078,2738.7,2738.5,0.00547935]
[1739413927269,0.73019,2738.6,2738.5,0.00547935]
[1739413928181,3.2078,2738.7,2738.5,0.00547935]
[1739413928480,3.93798,2738.7,2738.5,0.00547935]
[1739413928874,0.73018,2738.7,2738.5,0.73568935]
[1739413929070,0.73018,2738.7,2738.5,0.00547935]
[1739413929283,0.73015,2738.8,2738.5,0.73567935]
[1739413929774,0.55364927,2738.9,2738.5,0.73567935]
[1739413929968,0.73019,2738.6,2738.5,0.00547935]
[1739413931779,0.73019,2738.6,2738.5,0.00247798]
[1739413934086,3.2078,2738.7,2738.5,0.00247798]
[1739413934274,3.93796,2738.7,2738.5,0.00247798]
[1739413934474,0.73016,2738.7,2738.6,0.73019]
[1739413935083,0.73016,2738.7,2738.5,0.73267798]
[1739413935484,2.17864927,2738.9,2738.5,0.00247798]
[1739413935685,2.17864927,2738.9,2738.6,0.73018]
[1739413935873,2.17864927,2738.9,2738.5,0.00247798]
[1739413936076,3.93799,2738.6,2738.5,0.00247798]
[1739413936986,0.73019,2738.6,2738.5,0.00247798]
[1739413937988,3.93799,2738.6,2738.5,0.00247798]
[1739413938689,7.08531018,2738.6,2738.5,0.00247798]
[1739413938885,6.35512018,2738.6,2737.7,3.14732018]
[1739413939083,3.2078,2738.0,2737.5,0.73047]
[1739413939284,0.73041,2737.8,2737.6,0.73045]
[1739413939480,0.73043,2737.7,2737.4,3.14732018]
[1739413939780,7.97912018,2738.3,2737.4,3.14732018]
[1739413939781,0.73046,2737.6,2737.4,3.14732018]
[1739413940291,0.73047,2737.6,2737.3,3.93833]
[1739413941093,0.55364927,2737.7,2737.3,3.2078]
[1739413941286,3.2078,2737.7,2737.4,0.73049]
[1739413941488,3.2078,2737.7,2737.4,0.73051]
[1739413941691,3.93823,2737.7,2737.4,0.73051]
[1739413941891,4.49187927,2737.7,2737.4,0.73051]
[1739413942089,3.76144927,2737.7,2737.4,0.73051]
[1739413942294,4.49189927,2737.7,2737.3,3.93832]
[1739413942694,4.49189927,2737.7,2737.3,3.2078]
[1739413942891,4.49189927,2737.7,2737.4,0.73051]
[1739413943091,3.76144927,2737.7,2737.4,0.73051]
[1739413943291,0.55364927,2737.7,2737.4,3.14732018]
[1739413943786,0.55364927,2737.7,2737.6,0.73046]
[1739413944091,0.55364927,2737.7,2737.6,3.93826]
[1739413944299,0.55364927,2738.2,2737.6,3.2078]
[1739413944594,0.55364927,2738.2,2737.9,3.87768018]
[1739413944801,0.55364927,2738.2,2738.0,40.8]
[1739413944997,2.17864927,2738.6,2738.0,40.8]
[1739413945298,0.73026,2738.4,2738.0,40.8]
[1739413945504,0.73031,2738.2,2738.0,40.8]
[1739413945796,0.73025,2738.4,2738.0,41.53034]
[1739413945997,3.2078,2738.4,2738.0,40.8]
[1739413946400,0.73033,2738.1,2737.9,3.14732018]
[1739413946999,0.73033,2738.1,2737.9,43.94732018]
[1739413947194,3.2078,2738.4,2737.6,3.14732018]
[1739413947195,0.73041,2737.8,2737.6,3.14732018]
[1739413947402,0.73047,2737.6,2737.3,3.14732018]
[1739413947696,0.73046,2737.6,2737.3,3.14732018]
[1739413948293,3.2078,2737.7,2737.3,3.14732018]
[1739413948489,0.7305,2737.5,2737.3,3.14732018]
[1739413948702,3.2078,2737.7,2737.3,3.14732018]
[1739413949103,0.73047,2737.6,2737.3,3.87784018]
[1739413949499,3.2078,2737.7,2737.3,3.14732018]
[1739413949802,3.2078,2737.7,2737.1,40.8]
[1739413950003,0.73053,2737.4,2737.1,41.53059]
[1739413950391,0.73053,2737.4,2737.1,0.73059]
[1739413950599,0.00547935,2737.5,2737.1,0.73059]
[1739413950796,0.73052,2737.4,2737.1,0.73059]
[1739413951401,0.73051,2737.4,2737.1,0.73059]
[1739413952294,0.73057,2737.2,2737.0,3.14732018]
[1739413952495,0.73057,2737.2,2737.0,3.87792018]
[1739413952691,0.73054,2737.3,2737.1,0.73058]
[1739413953102,0.73054,2737.3,2737.0,3.87792018]
[1739413953602,0.73056,2737.2,2737.0,3.87792018]
[1739413953992,3.2078,2737.4,2737.0,3.14732018]
[1739413954200,0.73057,2737.2,2737.0,3.87792018]
[1739413954400,0.73055,2737.3,2737.0,3.14732018]
[1739413954600,3.93833,2737.4,2737.0,3.14732018]
[1739413954800,3.2078,2737.4,2737.2,0.73056]
[1739413955004,3.93831,2737.4,2737.2,0.73054]
[1739413955199,3.93832,2737.4,2737.1,0.73059]
[1739413955391,3.2078,2737.4,2737.0,3.14732018]
[1739413955600,3.2078,2737.4,2737.3,0.73054]
[1739413955798,3.2078,2737.4,2737.0,3.14732018]
[1739413956007,3.2078,2737.4,2737.2,0.73055]
[1739413956499,3.2078,2737.4,2737.3,0.73054]
[1739413956706,3.2078,2737.4,2737.3,3.87786018]
[1739413957704,0.00547935,2737.5,2737.3,6.35512018]
[1739413957906,0.00547935,2737.5,2737.4,0.73051]
[1739413962304,0.00547935,2737.5,2737.3,6.35868475]
[1739413962603,0.00547935,2737.5,2737.4,0.73051]
[1739413962808,0.00547935,2737.5,2737.3,7.08920475]
[1739413963000,0.00547935,2737.5,2737.4,0.73051]
[1739413963203,0.00547935,2737.5,2737.3,3.15088475]
[1739413963608,0.73597935,2737.5,2737.3,3.15088475]
[1739413963808,0.00547935,2737.5,2737.3,3.15088475]
[1739413964005,0.00547935,2737.5,2737.4,0.73051]
[1739413964202,0.00547935,2737.5,2737.4,3.93831]
[1739413964601,0.00547935,2737.5,2737.4,0.73051]
[1739413967216,0.00547935,2737.5,2737.4,3.93831]
[1739413973415,0.00547935,2737.5,2737.4,3.2078]
[1739413973608,0.00547935,2737.5,2737.4,3.93831]
[1739413974308,0.00547935,2737.5,2737.3,3.15088475]
[1739413974309,0.73051,2737.4,2737.3,0.00356457]
[1739413974614,0.73597935,2737.5,2737.3,0.00356457]
[1739413975009,0.00547935,2737.5,2737.3,0.00356457]
[1739413975511,0.00547935,2737.5,2737.4,0.73051]
[1739413975819,0.56152315,2737.5,2737.4,0.73051]
[1739413976611,0.00547935,2737.5,2737.3,3.15088475]
[1739413976820,0.73596935,2737.5,2737.3,3.15088475]
[1739413977317,0.73051,2737.4,2737.3,3.15088475]
[1739413977719,0.00547935,2737.5,2737.3,3.15088475]
[1739413977920,0.00547935,2737.5,2737.3,3.88140475]
[1739413978317,0.00547935,2737.5,2737.3,3.15088475]
[1739413978518,0.73051,2737.4,2737.3,3.15088475]
[1739413979126,0.73596935,2737.5,2737.3,3.15088475]
[1739413979420,0.73596935,2737.5,2737.3,3.88141475]
[1739413979620,0.73596935,2737.5,2737.3,3.15088475]
[1739413979822,0.00547935,2737.5,2737.3,3.15088475]
[1739413980119,0.00547935,2737.5,2737.4,0.73051]
[1739413982625,0.00547935,2737.5,2737.4,3.93831]
[1739413984325,0.00547935,2737.5,2737.4,0.73051]
[1739413984526,0.00547935,2737.5,2737.4,3.93831]
[1739413985424,0.5560438,2738.2,2738.0,0.73035]
[1739413985613,0.5560438,2738.2,2738.1,3.14732018]
[1739413985818,3.2078,2738.3,2738.1,3.14732018]
[1739413986020,3.2078,2738.3,2738.2,0.73029]
[1739413986215,3.2078,2738.3,2738.1,3.14732018]
[1739413987124,3.2078,2738.3,2737.9,40.80547935]
[1739413987125,3.93808,2738.3,2737.9,41.53582935]
[1739413987428,3.2078,2738.3,2738.0,0.73034]
[1739413988429,3.2078,2738.3,2737.9,0.00547935]
[1739413988627,0.73031,2738.2,2737.9,0.00547935]
[1739413988826,4.8318,2738.3,2738.1,0.7303]
[1739413989022,4.8318,2738.3,2738.2,0.7303]
[1739413989328,3.2078,2738.3,2738.2,0.7303]
[1739413989726,0.56037777,2738.5,2738.1,3.14732018]
[1739413989923,0.56037777,2738.5,2738.4,3.87756018]
[1739413990323,0.00547935,2738.5,2738.4,3.87756018]
[1739413992225,0.00547935,2738.5,2738.4,3.14732018]
[1739413992427,0.00547935,2738.5,2738.4,3.87756018]
[1739413993635,3.76147525,2739.1,2738.9,0.7301]
[1739413994030,3.2078,2739.1,2738.8,3.14732018]
[1739413994231,0.55367525,2739.3,2738.8,3.14732018]
[1739413994430,0.55367525,2739.3,2739.2,0.73003]
[1739413994729,0.55367525,2739.4,2739.2,0.73003]
[1739413994930,0.55367525,2739.4,2739.1,3.14732018]
[1739413995130,0.55367525,2739.4,2739.3,0.73]
[1739413995331,0.00547935,2739.5,2739.1,3.14732018]
[1739413995531,0.00547935,2739.5,2739.2,0.73003]
[1739413996336,0.00547935,2739.5,2739.1,3.14732018]
[1739413996835,0.00547935,2739.5,2739.4,3.87730018]
[1739413998332,3.2078,2740.1,2739.4,7.08510018]
[1739413998535,3.2078,2740.1,2739.9,3.14732018]
[1739414000640,3.2078,2740.1,2739.9,3.87715018]
[1739414001038,3.2078,2740.1,2739.7,0.00547935]
[1739414001441,0.72986,2739.9,2739.7,0.00547935]
[1739414001641,3.2078,2740.1,2739.7,0.00547935]
[1739414002142,0.72983,2740.0,2739.7,0.00547935]
[1739414002338,0.72987,2739.9,2739.7,0.00547935]
[1739414002539,0.72987,2739.8,2739.7,0.00547935]
[1739414002741,0.72985,2739.9,2739.7,0.00547935]
[1739414002940,0.72983,2740.0,2739.7,0.00547935]
[1739414003439,3.2078,2740.1,2739.7,0.00547935]
[1739414003645,0.72985,2739.9,2739.7,0.00547935]
[1739414003839,3.2078,2740.1,2739.7,0.00547935]
[1739414004046,3.9376,2740.1,2739.7,0.73535935]
[1739414004240,3.9376,2740.1,2739.7,0.00547935]
[1739414004241,3.2078,2740.1,2739.7,0.00547935]
[1739414004447,3.2078,2740.1,2740.0,0.72982]
[1739414004743,3.2078,2740.1,2739.9,3.14732018]
[1739414005948,3.9376,2740.1,2739.7,3.94315935]
[1739414006147,3.2078,2740.1,2739.7,3.21327935]
[1739414006643,3.2078,2740.1,2739.9,0.72984]
[1739414006849,3.2078,2740.1,2739.9,0.72982]
[1739414007341,3.2078,2740.1,2739.7,3.21327935]
[1739414007540,3.2078,2740.1,2739.9,0.72983]
[1739414007734,3.2078,2740.1,2739.7,3.21327935]
[1739414008247,0.72987,2739.8,2739.7,0.00547935]
[1739414008750,0.55087728,2740.1,2739.7,0.00547935]
[1739414008947,0.72987,2739.8,2739.7,0.00547935]
[1739414009442,0.3655,2740.1,2739.7,0.00547935]
[1739414009642,0.72986,2739.9,2739.7,0.00547935]
[1739414009842,3.93764,2740.0,2739.7,0.00547935]
[1739414010046,3.2078,2740.0,2739.7,0.00547935]
[1739414010245,0.72983,2740.0,2739.7,0.00547935]
[1739414010841,0.72983,2740.0,2739.7,0.00256401]
[1739414011045,0.3655,2740.2,2739.7,0.00256401]
[1739414011346,0.72987,2739.8,2739.7,0.00256401]
[1739414012649,0.72983,2740.0,2739.7,0.73245401]
[1739414012946,3.93763,2740.0,2739.7,0.73245401]
[1739414013550,0.3655,2740.1,2740.0,0.72982]
[1739414014045,0.3655,2740.1,2740.0,41.52982]
[1739414014443,0.3655,2740.2,2740.0,41.52982]
[1739414014640,0.3655,2740.2,2740.0,40.8]
[1739414014844,0.3655,2740.2,2740.1,0.72979]
[1739414015445,0.00547935,2740.3,2740.0,40.8]
[1739414015945,0.3655,2740.2,2740.0,41.5298]
[1739414016646,0.3655,2740.2,2740.0,40.8]
[1739414017351,0.00547935,2740.3,2740.0,40.8]
[1739414017652,0.3655,2740.1,2739.9,3.14732018]
[1739414017847,0.3655,2740.1,2739.9,3.87714018]
[1739414018152,0.3655,2740.1,2740.0,0.72982]
[1739414018543,0.3655,2740.2,2740.0,0.72982]
[1739414019643,0.00547935,2740.3,2739.9,3.14732018]
[1739414019844,1.0953,2740.1,2739.8,0.72985]
[1739414020045,1.0953,2740.1,2739.7,0.00256401]
[1739414020347,1.09531,2740.1,2739.8,40.8]
[1739414020649,0.3655,2740.1,2739.8,41.52985]
[1739414020844,0.3655,2740.2,2739.8,41.52985]
[1739414021048,1.0953,2740.1,2739.8,41.52985]
[1739414021249,0.3655,2740.1,2739.8,40.8]
[1739414021751,1.0953,2740.1,2739.8,41.52987]
[1739414022149,0.72984,2739.9,2739.8,40.8]
[1739414023351,0.72987,2739.8,2739.7,0.00256401]
[1739414031063,0.72987,2739.8,2739.7,0.00116029]
[1739414032464,0.72986,2739.9,2739.7,0.00116029]
[1739414032666,3.75989081,2740.0,2739.8,0.72986]
[1739414032967,0.55209081,2740.0,2739.9,3.87716018]
[1739414033150,0.55209081,2740.0,2739.9,44.67716018]
[1739414033357,0.3655,2740.1,2740.0,0.72902]
[1739414033556,0.3655,2740.1,2739.9,43.94732018]
[1739414034160,0.3655,2740.2,2739.9,43.94732018]
[1739414034365,0.3655,2740.2,2739.9,44.67714018]
[1739414034659,1.0953,2740.1,2739.9,43.94732018]
[1739414034860,0.72982,2740.0,2739.9,40.8]
[1739414035352,0.72987,2739.8,2739.7,0.00116029]
[1739414039164,0.72987,2739.8,2739.7,0.00036029]
[1739414040165,6.72987,2739.8,2739.7,0.00036029]
[1739414040566,7.28196081,2739.8,2739.7,0.00036029]
[1739414041162,6.55209081,2739.8,2738.8,41.53013]
[1739414041364,3.2078,2739.0,2738.8,40.8]
[1739414041664,0.73011,2738.9,2738.8,40.8]
[1739414042367,0.73015,2738.8,2738.6,0.73564935]
[1739414042772,3.76537016,2739.0,2738.9,0.73011]
[1739414043173,0.55757016,2739.0,2738.9,0.73011]
[1739414043566,0.00547935,2739.0,2738.9,0.73011]
[1739414043867,4.8298,2739.7,2738.9,3.2078]
[1739414044069,4.8298,2739.7,2739.4,0.72996]
[1739414044266,3.9377,2739.7,2739.4,0.72996]
[1739414044568,1.622,2740.0,2739.3,3.14732018]
[1739414044872,0.72985,2739.9,2739.3,3.14732018]
[1739414045171,0.73531935,2739.9,2739.6,3.14732018]
[1739414046370,0.72993,2739.6,2739.3,3.14732018]
[1739414047072,3.21327935,2739.9,2739.3,3.14732018]
[1739414047572,0.73531935,2739.9,2739.5,0.72994]
[1739414048161,0.72988,2739.8,2739.4,0.72996]
[1739414048771,0.73533935,2739.9,2739.5,0.72995]
[1739414048971,0.00547935,2739.9,2739.3,3.14732018]
[1739414049168,0.00547935,2739.9,2739.6,0.72992]
[1739414049875,0.00547935,2739.9,2739.7,0.72988]
[1739414050075,0.00547935,2739.9,2739.8,0.72987]
[1739414050975,0.00547935,2739.9,2739.7,0.72988]
[1739414051275,0.00547935,2739.9,2739.6,3.14732018]
[1739414051772,0.00547935,2739.9,2739.8,0.72987]
[1739414053277,0.91844421,2740.1,2740.0,0.72982]
[1739414053476,0.3655,2740.1,2740.0,3.14732018]
[1739414053675,0.3655,2740.2,2740.0,3.14732018]
[1739414053976,0.3655,2740.2,2740.1,40.8]
[1739414054570,1.09526,2740.2,2740.1,40.8]
[1739414055171,0.3655,2740.3,2739.7,3.14732018]
[1739414055373,1.0953,2740.1,2739.8,0.72986]
[1739414055573,0.3655,2740.1,2739.8,40.8]
[1739414055773,0.3655,2740.1,2739.7,3.14732018]
[1739414056076,1.0953,2740.1,2739.8,0.72986]
[1739414056478,3.5733,2740.1,2739.7,40.8]
[1739414056675,0.72987,2739.8,2739.6,2.996]
[1739414056978,0.72982,2740.0,2739.7,0.72989]
[1739414057181,1.0953,2740.1,2739.8,0.72986]
[1739414058077,0.72984,2740.0,2739.7,3.87721018]
[1739414058274,0.3655,2740.1,2739.7,3.14732018]
[1739414058474,0.72984,2740.0,2739.7,3.14732018]
[1739414058674,0.3655,2740.1,2739.7,3.14732018]
[1739414058982,0.72982,2740.0,2739.7,3.87720018]
[1739414059579,0.3655,2740.1,2739.7,3.14732018]
[1739414059783,0.3655,2740.1,2739.9,0.72983]
[1739414060380,0.3655,2740.2,2739.7,6.35512018]
[1739414060575,0.72985,2739.9,2739.7,6.35512018]
[1739414060778,0.72987,2739.8,2739.7,3.14732018]
[1739414060983,3.5733,2740.1,2739.7,3.14732018]
[1739414061283,0.55294421,2740.0,2739.8,0.72985]
[1739414061483,0.55294421,2740.0,2739.9,0.72984]
[1739414061880,3.5733,2740.1,2739.9,0.72984]
[1739414062386,0.3655,2740.1,2739.9,0.72984]
[1739414062682,1.09529,2740.1,2739.8,0.72985]
[1739414062884,0.3655,2740.1,2739.9,0.72982]
[1739414063080,0.3655,2740.1,2739.7,6.35512018]
[1739414063379,0.3655,2740.1,2740.0,0.72982]
[1739414063584,0.37097935,2740.4,2740.2,0.72976]
[1739414064087,0.37097935,2740.4,2740.0,6.36059953]
[1739414064682,0.37097935,2740.4,2740.2,0.72975]
[1739414064683,0.00547935,2740.4,2740.2,0.72975]
[1739414066287,0.00547935,2740.4,2740.0,6.36059953]
[1739414066487,0.00547935,2740.4,2740.2,0.72974]
[1739414067083,0.3655,2740.2,2740.0,6.36059953]
[1739414067287,0.3655,2740.2,2740.0,3.21327935]
[1739414067485,0.3655,2740.1,2740.0,3.21327935]
[1739414067878,0.3655,2740.1,2740.0,0.00547935]
[1739414068987,0.91932299,2740.2,2740.0,0.00547935]
[1739414069191,1.64909299,2740.2,2740.0,0.00547935]
[1739414069491,0.91932299,2740.2,2740.0,0.00547935]
[1739414069690,0.91932299,2740.2,2740.1,0.72979]
[1739414069889,0.3655,2740.2,2740.1,0.72979]
[1739414070487,0.3655,2740.3,2740.1,0.72979]
[1739414070688,0.3655,2740.3,2740.0,0.00547935]
[1739414070890,0.3655,2740.1,2740.0,0.00547935]
[1739414071285,1.09529,2740.1,2740.0,0.00547935]
[1739414071487,0.3655,2740.1,2740.0,0.00547935]
[1739414071882,1.09529,2740.1,2740.0,0.00547935]
[1739414072282,0.3655,2740.1,2740.0,0.00547935]
[1739414072690,0.3655,2740.1,2740.0,0.73529935]
[1739414073096,0.3655,2740.2,2740.1,0.72979]
[1739414073390,0.3655,2740.2,2740.0,3.15279953]
[1739414073593,0.3655,2740.2,2740.1,0.72979]
[1739414074088,0.3655,2740.3,2740.0,3.15279953]
[1739414074394,0.3655,2740.3,2740.2,0.72976]
[1739414074794,0.3655,2740.3,2740.2,3.93756]
[1739414075293,0.00547935,2740.4,2740.3,0.72974]